fUSD/lending_fUSD_20240518
["ID","MTS","AMOUNT","RATE_DAILY","PERIOD"]
[327432616,1716072693505,-985.63,0.00028767,2]
[327432617,1716072693515,-537.31,0.00028767,2]
[327432618,1716072693524,-619.31,0.00028767,2]
[327432619,1716072693534,-500.0,0.00028767,2]
[327432620,1716072693543,-1356.52,0.00028767,2]
[327432621,1716072693553,-500.0,0.00028767,2]
[327432622,1716072693563,-500.0,0.00028767,2]
[327432623,1716072693573,-2016.27,0.00028767,2]
[327432624,1716072693583,-612.5,0.00028767,2]
[327432625,1716072693594,-528.03,0.00028767,2]
[327432626,1716072693604,-500.0,0.00028767,2]
[327432627,1716072693613,-500.0,0.00028767,2]
[327432628,1716072693623,-500.0,0.00028767,2]
[327432629,1716072693632,-996.54,0.00028767,2]
[327432630,1716072693642,-500.0,0.00028767,2]
[327432631,1716072693652,-500.0,0.00028767,2]
[327432632,1716072693661,-500.0,0.00028767,2]
[327432633,1716072693671,-519.88,0.00028767,2]
[327432634,1716072693681,-500.0,0.00028767,2]
[327432635,1716072693691,-553.54,0.00028767,2]
[327432636,1716072693701,-299.17,0.00028767,2]
[327432637,1716072693711,-151.0,0.00028767,7]
[327432638,1716072693721,-332.48894,0.00028767,7]
[327432639,1716072693731,-500.0,0.00028767,2]
[327432640,1716072693740,-1102.51,0.00028767,2]
[327432641,1716072693750,-500.0,0.00028767,2]
[327432642,1716072693760,-500.0,0.00028767,2]
[327432643,1716072693769,-332.48894,0.00028767,7]
[327432644,1716072693779,-210.95501484,0.00028767,2]
[327432645,1716072693789,-940.06,0.00028767,2]
[327432646,1716072693798,-500.0,0.00028767,2]
[327432647,1716072693808,-500.0,0.00028767,2]
[327432648,1716072693817,-500.0,0.00028767,2]
[327432649,1716072693827,-500.0,0.00028767,2]
[327432650,1716072693838,-500.0,0.00028767,2]
[327432651,1716072693847,-517.32,0.00028767,2]
[327432652,1716072693857,-500.0,0.00028767,2]
[327432653,1716072693867,-740.68,0.00028767,2]
[327432654,1716072693880,-509.85,0.00028767,2]
[327432655,1716072693893,-401.176148,0.00028767,7]
[327432656,1716072693903,-394.370414,0.00028767,7]
[327432657,1716072693915,-500.0,0.00028767,2]
[327432658,1716072693927,-151.0,0.00028767,7]
[327432659,1716072693937,-401.176148,0.00028767,7]
[327432660,1716072693947,-394.370414,0.00028767,7]
[327432661,1716072693957,-500.0,0.00028767,2]
[327432662,1716072693966,-553.70788737,0.00028767,2]
[327432663,1716072693976,-660.73,0.00028767,2]
[327432664,1716072693986,-500.0,0.00028767,2]
[327432665,1716072693995,-500.0,0.00028767,2]
[327432666,1716072694006,-595.48,0.00028767,2]
[327432667,1716072694016,-500.0,0.00028767,2]
[327432668,1716072694028,-500.0,0.00028767,2]
[327432669,1716072694038,-500.0,0.00028767,2]
[327432670,1716072694048,-521.04,0.00028767,2]
[327432671,1716072694058,-1113.91,0.00028767,2]
[327432672,1716072694067,-428.007828,0.00028767,7]
[327432673,1716072694077,-500.0,0.00028767,2]
[327432674,1716072694087,-1942.1,0.00028767,2]
[327432675,1716072694097,-500.0,0.00028767,2]
[327432676,1716072694107,-177.827012,0.00028767,7]
[327432677,1716072694117,-1482.72,0.00028767,2]
[327432678,1716072694128,-428.007828,0.00028767,7]
[327432679,1716072694137,-1155.06,0.00028767,2]
[327432680,1716072694147,-500.0,0.00028767,2]
[327432681,1716072694157,-726.7,0.00028767,2]
[327432682,1716072694166,-177.827012,0.00028767,7]
[327432683,1716072694176,-500.0,0.00028767,2]
[327432684,1716072694185,-500.0,0.00028767,2]
[327432685,1716072694195,-500.0,0.00028767,2]
[327432686,1716072694205,-532.61,0.00028767,2]
[327432687,1716072694214,-847.09,0.00028767,2]
[327432688,1716072694224,-151.0,0.00028767,7]
[327432689,1716072694233,-964.76,0.00028767,2]
[327432690,1716072694243,-500.0,0.00028767,2]
[327432691,1716072694253,-1203.05,0.00028767,2]
[327432692,1716072694263,-2231.29,0.00028767,2]
[327432693,1716072694272,-500.0,0.00028767,2]
[327432694,1716072694282,-500.0,0.00028767,2]
[327432695,1716072694291,-500.0,0.00028767,2]
[327432696,1716072694301,-827.71,0.00028767,2]
[327432697,1716072694311,-842.65939,0.00028767,7]
[327432698,1716072694320,-500.0,0.00028767,2]
[327432699,1716072694329,-697.91,0.00028767,2]
[327432700,1716072694339,-842.65939,0.00028767,7]
[327432701,1716072694349,-1278.41,0.00028767,2]
[327432702,1716072694359,-816.1,0.00028767,2]
[327432703,1716072694368,-500.0,0.00028767,2]
[327432704,1716072694377,-32915.72,0.00028767,2]
[327432705,1716072694387,-2447.17,0.00028767,2]
[327432706,1716072694397,-953.63,0.00028767,2]
[327432707,1716072694408,-865.72,0.00028767,2]
[327432708,1716072694419,-682.57,0.00028767,2]
[327432709,1716072694428,-529.16,0.00028767,2]
[327432710,1716072694438,-1750.4,0.00028767,2]
[327432711,1716072694447,-2057.73,0.00028767,2]
[327432712,1716072694458,-2572.88,0.00028767,2]
[327432713,1716072694467,-3119.96,0.00028767,2]
[327432714,1716072694478,-922.14,0.00028767,2]
[327432715,1716072694488,-500.0,0.00028767,2]
[327432716,1716072694498,-500.0,0.00028767,2]
[327432717,1716072694508,-500.0,0.00028767,2]
[327432718,1716072694518,-2353.86,0.00028767,2]
[327432719,1716072694527,-500.0,0.00028767,2]
[327432720,1716072694537,-531.36,0.00028767,2]
[327432721,1716072694547,-522.36772913,0.00028767,2]
[327432722,1716072694556,-858.26,0.00028767,2]
[327432723,1716072694565,-150.0,0.00028767,2]
[327432724,1716072694575,-500.0,0.00028767,2]
[327432725,1716072694585,-1058.12,0.00028767,2]
[327432726,1716072694595,-151.0,0.00028767,7]
[327432727,1716072694605,-500.0,0.00028767,2]
[327432728,1716072694615,-638.4,0.00028767,2]
[327432729,1716072694625,-500.0,0.00028767,2]
[327432730,1716072694635,-1228.94,0.00028767,2]
[327432731,1716072694645,-500.0,0.00028767,2]
[327432732,1716072694654,-872.12,0.00028767,2]
[327432733,1716072694663,-610.79,0.00028767,2]
[327432734,1716072694673,-500.0,0.00028767,2]
[327432735,1716072694682,-650.02,0.00028767,2]
[327432736,1716072694691,-500.0,0.00028767,2]
[327432737,1716072694701,-500.0,0.00028767,2]
[327432738,1716072694711,-911.87,0.00028767,2]
[327432739,1716072694720,-722.52,0.00028767,2]
[327432740,1716072694730,-628.71,0.00028767,2]
[327432741,1716072694740,-612.69,0.00028767,2]
[327432742,1716072694750,-9177.76,0.00028767,2]
[327432743,1716072694915,-500.0,0.00028767,2]
[327432744,1716072694926,-500.0,0.00028767,2]
[327432745,1716072694935,-500.0,0.00028767,2]
[327432746,1716072694945,-2257.41,0.00028767,2]
[327432747,1716072694954,-500.0,0.00028767,2]
[327432748,1716072694963,-602.34,0.00028767,2]
[327432749,1716072694972,-944.42,0.00028767,2]
[327432750,1716072694981,-1506.69,0.00028767,2]
[327432751,1716072694990,-151.0,0.00028767,7]
[327432752,1716072694999,-1061.27,0.00028767,2]
[327432753,1716072695008,-3490.29,0.00028767,2]
[327432754,1716072695017,-500.0,0.00028767,2]
[327432755,1716072695026,-151.0,0.00028767,7]
[327432756,1716072695035,-500.0,0.00028767,2]
[327432757,1716072695045,-728.73,0.00028767,2]
[327432758,1716072695054,-500.0,0.00028767,2]
[327432759,1716072695063,-649.73,0.00028767,2]
[327432760,1716072695072,-500.0,0.00028767,2]
[327432761,1716072695081,-1121.22,0.00028767,2]
[327432762,1716072695091,-151.0,0.00028767,7]
[327432763,1716072695100,-965.84,0.00028767,2]
[327432764,1716072695109,-962.75,0.00028767,2]
[327432765,1716072695118,-500.0,0.00028767,2]
[327432766,1716072695127,-1517.22,0.00028767,2]
[327432767,1716072695136,-151.0,0.00028767,7]
[327432768,1716072695145,-607.13,0.00028767,2]
[327432769,1716072695154,-777.39,0.00028767,2]
[327432770,1716072695164,-1646.21,0.00028767,2]
[327432771,1716072695173,-1072.65,0.00028767,2]
[327432772,1716072695182,-522.66,0.00028767,2]
[327432773,1716072695191,-500.0,0.00028767,2]
[327432774,1716072695200,-500.0,0.00028767,2]
[327432775,1716072695209,-500.0,0.00028767,2]
[327432776,1716072695220,-2342.49,0.00028767,2]
[327432777,1716072695229,-500.0,0.00028767,2]
[327432778,1716072695240,-936.43,0.00028767,2]
[327432779,1716072695250,-151.0,0.00028767,7]
[327432780,1716072695260,-677.05,0.00028767,2]
[327432781,1716072695270,-500.0,0.00028767,2]
[327432782,1716072695281,-7836.42,0.00028767,2]
[327432783,1716072695291,-500.0,0.00028767,2]
[327432784,1716072695301,-1119.09,0.00028767,2]
[327432785,1716072695312,-500.0,0.00028767,2]
[327432786,1716072695322,-500.0,0.00028767,2]
[327432787,1716072695331,-500.0,0.00028767,2]
[327432788,1716072695341,-181.80579823,0.00028767,2]
[327432789,1716072695352,-500.0,0.00028767,2]
[327432790,1716072695362,-151.0,0.00028767,7]
[327432791,1716072695370,-500.0,0.00028767,2]
[327432792,1716072695379,-747.33,0.00028767,2]
[327432793,1716072695388,-899.97,0.00028767,2]
[327432794,1716072695397,-500.0,0.00028767,2]
[327432795,1716072695408,-500.0,0.00028767,2]
[327432796,1716072695419,-500.0,0.00028767,2]
[327432797,1716072695427,-958.2,0.00028767,2]
[327432798,1716072695436,-500.0,0.00028767,2]
[327432799,1716072695445,-814.37,0.00028767,2]
[327432800,1716072695456,-903.76,0.00028767,2]
[327432801,1716072695465,-804.91,0.00028767,2]
[327432802,1716072695474,-500.0,0.00028767,2]
[327432803,1716072695483,-5840.53,0.00028767,2]
[327432804,1716072695494,-546.54,0.00028767,2]
[327432805,1716072695504,-944.57,0.00028767,2]
[327432806,1716072695513,-567.91,0.00028767,2]
[327432807,1716072695522,-500.0,0.00028767,2]
[327432808,1716072695532,-500.0,0.00028767,2]
[327432809,1716072695541,-500.0,0.00028767,2]
[327432810,1716072695550,-500.0,0.00028767,2]
[327432811,1716072695559,-500.0,0.00028767,2]
[327432812,1716072695568,-8080.33,0.00028767,2]
[327432813,1716072695578,-514.52,0.00028767,2]
[327432814,1716072695587,-1436.74,0.00028767,2]
[327432815,1716072695596,-966.71,0.00028767,2]
[327432816,1716072695606,-500.0,0.00028767,2]
[327432817,1716072695615,-617.57,0.00028767,2]
[327432818,1716072695624,-859.01,0.00028767,2]
[327432819,1716072695634,-598.86,0.00028767,2]
[327432820,1716072695643,-4199.51,0.00028767,2]
[327432821,1716072695652,-757.33,0.00028767,2]
[327432822,1716072695661,-222.306964,0.00028767,7]
[327432823,1716072695672,-2709.04,0.00028767,2]
[327432824,1716072695681,-845.88,0.00028767,2]
[327432825,1716072695691,-4393.59,0.00028767,2]
[327432826,1716072695700,-1202.17,0.00028767,2]
[327432827,1716072695709,-830.64,0.00028767,2]
[327432828,1716072695719,-500.0,0.00028767,2]
[327432829,1716072695728,-791.26,0.00028767,2]
[327432830,1716072695737,-222.306964,0.00028767,7]
[327432831,1716072695747,-500.0,0.00028767,2]
[327432832,1716072695756,-1031.41,0.00028767,2]
[327432833,1716072695765,-914.71,0.00028767,2]
[327432834,1716072695775,-500.0,0.00028767,2]
[327432835,1716072695784,-13454.18,0.00028767,2]
[327432836,1716072695793,-312.972067,0.00028767,7]
[327432837,1716072695803,-743.99,0.00028767,2]
[327432838,1716072695812,-825.76,0.00028767,2]
[327432839,1716072695822,-917.37,0.00028767,2]
[327432840,1716072695831,-4993.36,0.00028767,2]
[327432841,1716072695842,-1338.01,0.00028767,2]
[327432842,1716072695851,-500.0,0.00028767,2]
[327432843,1716072695860,-500.0,0.00028767,2]
[327432844,1716072695869,-312.972067,0.00028767,7]
[327432845,1716072695878,-500.0,0.00028767,2]
[327432846,1716072695887,-500.0,0.00028767,2]
[327432847,1716072695896,-2348.84,0.00028767,2]
[327432848,1716072695905,-620.39,0.00028767,2]
[327432849,1716072695914,-787.6,0.00028767,2]
[327432850,1716072695923,-500.0,0.00028767,2]
[327432851,1716072695932,-2108.67,0.00028767,2]
[327432852,1716072695941,-500.0,0.00028767,2]
[327432853,1716072695950,-500.0,0.00028767,2]
[327432854,1716072695960,-591.28,0.00028767,2]
[327432855,1716072695969,-1781.93,0.00028767,2]
[327432856,1716072695978,-834.18,0.00028767,2]
[327432857,1716072695987,-500.0,0.00028767,2]
[327432858,1716072695996,-500.0,0.00028767,2]
[327432859,1716072696006,-500.0,0.00028767,2]
[327432860,1716072696015,-2211.96,0.00028767,2]
[327432861,1716072696024,-1566.6,0.00028767,2]
[327432862,1716072696033,-449.613505,0.00028767,7]
[327432863,1716072696042,-500.0,0.00028767,2]
[327432864,1716072696051,-449.613505,0.00028767,7]
[327432865,1716072696060,-525.01,0.00028767,2]
[327432866,1716072696069,-500.0,0.00028767,2]
[327432867,1716072696078,-775.61,0.00028767,2]
[327432868,1716072696087,-449.613505,0.00028767,7]
[327432869,1716072696096,-449.613505,0.00028767,7]
[327432870,1716072696105,-524.04,0.00028767,2]
[327432871,1716072696114,-500.0,0.00028767,2]
[327432872,1716072696124,-659.23,0.00028767,2]
[327432873,1716072696133,-500.0,0.00028767,2]
[327432874,1716072696142,-1439.35,0.00028767,2]
[327432875,1716072696152,-4593.95,0.00028767,2]
[327432876,1716072696161,-660.78,0.00028767,2]
[327432877,1716072696171,-1429.16,0.00028767,2]
[327432878,1716072696180,-553.81,0.00028767,2]
[327432879,1716072696190,-4440.74,0.00028767,2]
[327432880,1716072696199,-500.0,0.00028767,2]
[327432881,1716072696208,-859.19,0.00028767,2]
[327432882,1716072696218,-500.0,0.00028767,2]
[327432883,1716072696228,-500.0,0.00028767,2]
[327432884,1716072696237,-500.0,0.00028767,2]
[327432885,1716072696246,-500.0,0.00028767,2]
[327432886,1716072696256,-987.39,0.00028767,2]
[327432887,1716072696265,-500.0,0.00028767,2]
[327432888,1716072696275,-2255.19,0.00028767,2]
[327432889,1716072696284,-500.0,0.00028767,2]
[327432890,1716072696293,-1264.56,0.00028767,2]
[327432891,1716072696303,-1385.24,0.00028767,2]
[327432892,1716072696312,-611.43,0.00028767,2]
[327432893,1716072696321,-441.992191,0.00028767,7]
[327432894,1716072696330,-1221.01,0.00028767,2]
[327432895,1716072696339,-441.992191,0.00028767,7]
[327432896,1716072696348,-2088.5,0.00028767,2]
[327432897,1716072696358,-1484.57,0.00028767,2]
[327432898,1716072696367,-500.0,0.00028767,2]
[327432899,1716072696376,-695.302793,0.00028767,7]
[327432900,1716072696385,-441.992191,0.00028767,7]
[327432901,1716072696395,-695.302793,0.00028767,7]
[327432902,1716072696404,-441.992191,0.00028767,7]
[327432903,1716072696417,-500.0,0.00028767,2]
[327432904,1716072696427,-695.302793,0.00028767,7]
[327432905,1716072696437,-500.0,0.00028767,2]
[327432906,1716072696446,-695.302793,0.00028767,7]
[327432907,1716072696456,-500.0,0.00028767,2]
[327432908,1716072696465,-500.0,0.00028767,2]
[327432909,1716072696474,-500.0,0.00028767,2]
[327432910,1716072696483,-500.0,0.00028767,2]
[327432911,1716072696494,-500.0,0.00028767,2]
[327432912,1716072696504,-500.0,0.00028767,2]
[327432913,1716072696514,-1786.52,0.00028767,2]
[327432914,1716072696523,-500.0,0.00028767,2]
[327432915,1716072696532,-7643.34,0.00028767,2]
[327432916,1716072696541,-865.89,0.00028767,2]
[327432917,1716072696551,-5681.26,0.00028767,2]
[327432918,1716072696560,-500.0,0.00028767,2]
[327432919,1716072696570,-834.34,0.00028767,2]
[327432920,1716072696580,-569.88,0.00028767,2]
[327432921,1716072696590,-500.0,0.00028767,2]
[327432922,1716072696599,-184.746498,0.00028767,7]
[327432923,1716072696609,-184.746498,0.00028767,7]
[327432924,1716072696618,-500.0,0.00028767,2]
[327432925,1716072696627,-500.0,0.00028767,2]
[327432926,1716072696637,-762.15,0.00028767,2]
[327432927,1716072696646,-500.0,0.00028767,2]
[327432928,1716072696655,-555.28,0.00028767,2]
[327432929,1716072696665,-500.0,0.00028767,2]
[327432930,1716072696674,-500.0,0.00028767,2]
[327432931,1716072696683,-184.746498,0.00028767,7]
[327432932,1716072696693,-500.0,0.00028767,2]
[327432933,1716072696702,-500.0,0.00028767,2]
[327432934,1716072696711,-184.746498,0.00028767,7]
[327432935,1716072696720,-1179.45,0.00028767,2]
[327432936,1716072696729,-200.329008,0.00028767,7]
[327432937,1716072696738,-500.0,0.00028767,2]
[327432938,1716072696747,-500.0,0.00028767,2]
[327432939,1716072696756,-855.04,0.00028767,2]
[327432940,1716072696766,-500.0,0.00028767,2]
[327432941,1716072696776,-1063.61,0.00028767,2]
[327432942,1716072696786,-500.0,0.00028767,2]
[327432943,1716072696796,-654.27,0.00028767,2]
[327432944,1716072696807,-734.04,0.00028767,2]
[327432945,1716072696818,-327.43,0.00028767,2]
[327432946,1716072696828,-616.27,0.00028767,2]
[327432947,1716072696837,-297.291445,0.00028767,7]
[327432948,1716072696847,-999.31,0.00028767,2]
[327432949,1716072696858,-668.19,0.00028767,2]
[327432950,1716072696868,-500.0,0.00028767,2]
[327432951,1716072696879,-2612.48,0.00028767,2]
[327432952,1716072696889,-948.02,0.00028767,2]
[327432953,1716072696899,-500.0,0.00028767,2]
[327432954,1716072696908,-500.0,0.00028767,2]
[327432955,1716072696918,-969.95,0.00028767,2]
[327432956,1716072696927,-874.06,0.00028767,2]
[327432957,1716072696936,-515.87,0.00028767,2]
[327432958,1716072696946,-404.84,0.00028767,2]
[327432959,1716072696955,-1449.83,0.00028767,2]
[327432960,1716072696965,-897.1,0.00028767,2]
[327432961,1716072696974,-500.0,0.00028767,2]
[327432962,1716072696983,-500.0,0.00028767,2]
[327432963,1716072696992,-150.0,0.00028877,2]
[327432964,1716072697001,-2400.0,0.000289,10]
[327432965,1716072697010,-1800.0,0.00029,30]
[327432966,1716072697021,-150.0,0.0002904,2]
[327432967,1716072697030,-500.0,0.00029041,2]
[327432968,1716072697039,-854.48,0.00029041,2]
[327432969,1716072697048,-500.0,0.00029041,2]
[327432970,1716072697057,-500.0,0.00029041,2]
[327432971,1716072697067,-722.84,0.00029041,2]
[327432972,1716072697076,-500.0,0.00029041,2]
[327432973,1716072697085,-500.0,0.00029041,2]
[327432974,1716072697094,-500.0,0.00029041,2]
[327432975,1716072697103,-749.24,0.00029041,2]
[327432976,1716072697112,-550.07,0.00029041,2]
[327432977,1716072697122,-763.94,0.00029041,2]
[327432978,1716072697131,-500.0,0.00029041,2]
[327432979,1716072697140,-500.0,0.00029041,2]
[327432980,1716072697149,-931.54,0.00029041,2]
[327432981,1716072697158,-1254.54,0.00029041,2]
[327432982,1716072697167,-500.0,0.00029041,2]
[327432983,1716072697177,-545.32,0.00029041,2]
[327432984,1716072697186,-500.0,0.00029041,2]
[327432985,1716072697195,-500.0,0.00029041,2]
[327432986,1716072697205,-500.0,0.00029041,2]
[327432987,1716072697214,-500.0,0.00029041,2]
[327432988,1716072697224,-500.0,0.00029041,2]
[327432989,1716072697233,-964.74,0.00029041,2]
[327432990,1716072697242,-500.0,0.00029041,2]
[327432991,1716072697252,-500.0,0.00029041,2]
[327432992,1716072697262,-1304.69,0.00029041,2]
[327432993,1716072697271,-1394.33,0.00029041,2]
[327432994,1716072697281,-500.0,0.00029041,2]
[327432995,1716072697290,-500.0,0.00029041,2]
[327432996,1716072697299,-500.0,0.00029041,2]
[327432997,1716072697309,-500.0,0.00029041,2]
[327432998,1716072697318,-1176.76,0.00029041,2]
[327432999,1716072697327,-500.0,0.00029041,2]
[327433000,1716072697338,-500.0,0.00029041,2]
[327433001,1716072697347,-500.0,0.00029041,2]
[327433002,1716072697356,-500.0,0.00029041,2]
[327433003,1716072697365,-500.0,0.00029041,2]
[327433004,1716072697374,-542.84521978,0.00029041,2]
[327433005,1716072697384,-572.05,0.00029041,2]
[327433006,1716072697393,-500.0,0.00029041,2]
[327433007,1716072697402,-500.0,0.00029041,2]
[327433008,1716072697416,-1239.33,0.00029041,2]
[327433009,1716072697426,-661.91,0.00029041,2]
[327433010,1716072697435,-500.0,0.00029041,2]
[327433011,1716072697445,-500.0,0.00029041,2]
[327433012,1716072697455,-500.0,0.00029041,2]
[327433013,1716072697464,-500.0,0.00029041,2]
[327433014,1716072697473,-500.0,0.00029041,2]
[327433015,1716072697482,-500.0,0.00029041,2]
[327433016,1716072697493,-680.23,0.00029041,2]
[327433017,1716072697502,-161.4130163,0.00029041,2]
[327433018,1716072697512,-296.52820753,0.00029041,2]
[327433019,1716072697521,-500.0,0.00029041,2]
[327433020,1716072697531,-1000.47,0.00029041,2]
[327433021,1716072697540,-605.84,0.00029041,2]
[327433022,1716072697549,-500.0,0.00029041,2]
[327433023,1716072697559,-790.21,0.00029041,2]
[327433024,1716072697569,-1223.78,0.00029041,2]
[327433025,1716072697579,-765.58,0.00029041,2]
[327433026,1716072697589,-500.0,0.00029041,2]
[327433027,1716072697598,-1056.08,0.00029041,2]
[327433028,1716072697607,-534.55,0.00029041,2]
[327433029,1716072697616,-678.81,0.00029041,2]
[327433030,1716072697626,-812.38,0.00029041,2]
[327433031,1716072697635,-582.36,0.00029041,2]
[327433032,1716072697644,-1653.59,0.00029041,2]
[327433033,1716072697652,-1175.58,0.00029041,2]
[327433034,1716072697661,-1017.72,0.00029041,2]
[327433035,1716072697671,-1143.15,0.00029041,2]
[327433036,1716072697680,-500.0,0.00029041,2]
[327433037,1716072697689,-831.82,0.00029041,2]
[327433038,1716072697698,-151.0,0.00029041,7]
[327433039,1716072697707,-802.37,0.00029041,2]
[327433040,1716072697716,-800.26,0.00029041,2]
[327433041,1716072697726,-500.0,0.00029041,2]
[327433042,1716072697735,-726.12,0.00029041,2]
[327433043,1716072697744,-1012.59,0.00029041,2]
[327433044,1716072697753,-1028.52,0.00029041,2]
[327433045,1716072697762,-708.72,0.00029041,2]
[327433046,1716072697772,-984.97,0.00029041,2]
[327433047,1716072697781,-825.63,0.00029041,2]
[327433048,1716072697790,-500.0,0.00029041,2]
[327433049,1716072697800,-500.0,0.00029041,2]
[327433050,1716072697810,-500.0,0.00029041,2]
[327433051,1716072697819,-500.0,0.00029041,2]
[327433052,1716072697829,-1274.28,0.00029041,2]
[327433053,1716072697839,-530.83053594,0.00029041,2]
[327433054,1716072697848,-551.19,0.00029041,2]
[327433055,1716072697857,-500.0,0.00029041,2]
[327433056,1716072697867,-500.0,0.00029041,2]
[327433057,1716072697876,-706.32,0.00029041,2]
[327433058,1716072698047,-500.0,0.00029041,2]
[327433059,1716072698057,-500.0,0.00029041,2]
[327433060,1716072698067,-806.78,0.00029041,2]
[327433061,1716072698076,-1763.56,0.00029041,2]
[327433062,1716072698086,-756.43,0.00029041,2]
[327433063,1716072698096,-151.0,0.00029041,7]
[327433064,1716072698105,-812.94,0.00029041,2]
[327433065,1716072698114,-500.0,0.00029041,2]
[327433066,1716072698123,-500.0,0.00029041,2]
[327433067,1716072698133,-500.0,0.00029041,2]
[327433068,1716072698143,-500.0,0.00029041,2]
[327433069,1716072698152,-500.0,0.00029041,2]
[327433070,1716072698161,-1640.62,0.00029041,2]
[327433071,1716072698171,-919.67,0.00029041,2]
[327433072,1716072698180,-994.59,0.00029041,2]
[327433073,1716072698190,-508.72,0.00029041,2]
[327433074,1716072698200,-500.0,0.00029041,2]
[327433075,1716072698210,-151.0,0.00029041,7]
[327433076,1716072698219,-1278.05,0.00029041,2]
[327433077,1716072698228,-500.0,0.00029041,2]
[327433078,1716072698238,-500.0,0.00029041,2]
[327433079,1716072698247,-538.29,0.00029041,2]
[327433080,1716072698256,-500.0,0.00029041,2]
[327433081,1716072698266,-878.16,0.00029041,2]
[327433082,1716072698276,-500.0,0.00029041,2]
[327433083,1716072698287,-1193.14,0.00029041,2]
[327433084,1716072698297,-500.0,0.00029041,2]
[327433085,1716072698307,-511.86,0.00029041,2]
[327433086,1716072698316,-481.38618794,0.00029041,2]
[327433087,1716072698331,-396.04108865,0.00029041,2]
[327433088,1716072698342,-629.56,0.00029041,2]
[327433089,1716072698351,-387.32502689,0.00029041,2]
[327433090,1716072698360,-701.29,0.00029041,2]
[327433091,1716072698371,-500.0,0.00029041,2]
[327433092,1716072698381,-1465.44,0.00029041,2]
[327433093,1716072698390,-500.0,0.00029041,2]
[327433094,1716072698400,-151.0,0.00029041,7]
[327433095,1716072698409,-500.0,0.00029041,2]
[327433096,1716072698420,-737.76,0.00029041,2]
[327433097,1716072698430,-500.0,0.00029041,2]
[327433098,1716072698440,-500.0,0.00029041,2]
[327433099,1716072698450,-535.86,0.00029041,2]
[327433100,1716072698459,-545.55,0.00029041,2]
[327433101,1716072698471,-500.0,0.00029041,2]
[327433102,1716072698480,-676.12,0.00029041,2]
[327433103,1716072698489,-664.25,0.00029041,2]
[327433104,1716072698498,-500.0,0.00029041,2]
[327433105,1716072698508,-500.0,0.00029041,2]
[327433106,1716072698518,-1116.91,0.00029041,2]
[327433107,1716072698528,-1468.41,0.00029041,2]
[327433108,1716072698537,-500.0,0.00029041,2]
[327433109,1716072698546,-500.0,0.00029041,2]
[327433110,1716072698557,-500.0,0.00029041,2]
[327433111,1716072698566,-500.0,0.00029041,2]
[327433112,1716072698575,-500.0,0.00029041,2]
[327433113,1716072698585,-151.0,0.00029041,7]
[327433114,1716072698594,-1503.59,0.00029041,2]
[327433115,1716072698603,-151.0,0.00029041,7]